[Event "DVM U14 2024"]
[Site "Heidelberg"]
[Date "2024.12.28"]
[Round "4"]
[White "Faerber, Anna"]
[Black "Noennig, Jakob"]
[Result "1/2-1/2"]
[ECO "C45"]
[WhiteElo "1698"]
[BlackElo "2065"]
[Annotator "RC"]
[PlyCount "182"]
[EventDate "2024.12.23"]
[EventType "team-tourn"]
[EventRounds "7"]
[EventCountry "GER"]
[SourceTitle "playchess.com"]
[Source "ChessBase"]
[SourceQuality "1"]
[TimeControl "40/5400+30:1800+30"]

1. e4 {[%emt 0:00:08]} e5 {[%emt 0:00:10]} 2. Nf3 {[%emt 0:00:12]} Nc6 {[%emt 0:00:06]} 3. d4 {[%emt 0:00:10]} exd4 {[%emt 0:00:14]} 4. Nxd4 {[%emt 0:00:11]} Bb4+ {[%emt 0:00:32]} 5. c3 {[%emt 0:02:23]} Bc5 {[%emt 0:00:16]} 6. Be3 {[%emt 0:01:43]} Bb6 {[%emt 0:00:47]} 7. Nd2 {[%emt 0:02:57]} Nge7 {[%emt 0:01:37]} 8. N2f3 {[%emt 0:03:09]} O-O {[%emt 0:02:56]} 9. Bd3 {[%emt 0:07:36]} d5 {[%emt 0:06:34]} 10. Nxc6 {[%emt 0:04:46]} bxc6 {[%emt 0:00:42]} 11. Bxb6 {[%emt 0:01:24]} axb6 {[%emt 0:02:05]} 12. O-O {[%emt 0:03:14]} Bg4 {[%emt 0:16:27]} 13. exd5 {[%emt 0:08:49]} Qxd5 {[%emt 0:12:30]} 14. a3 {[%emt 0:11:22]} Rad8 {[%emt 0:13:40]} 15. Be2 {[%emt 0:03:33]} Qe4 {[%emt 0:06:17]} 16. Qc1 {[%emt 0:03:44]} Qxe2 {[%emt 0:08:43]} 17. Re1 {[%emt 0:00:14]} Qb5 {[%emt 0:06:16]} 18. Rxe7 {[%emt 0:00:46]} Bxf3 {[%emt 0:00:21]} 19. gxf3 {[%emt 0:00:25]} Rd6 {[%emt 0:00:40]} 20. Re4 {[%emt 0:04:50]} f5 {[%emt 0:03:43]} 21. Rd4 {[%emt 0:03:01]} Rg6+ {[%emt 0:14:56]} 22. Kh1 {[%emt 0:00:13]} Qe2 {[%emt 0:01:12]} 23. Qe3 {[%emt 0:01:24]} Qxb2 {[%emt 0:00:19]} 24. Rad1 {[%emt 0:01:42]} Qxa3 {[%emt 0:00:41]} 25. Qd3 {[%emt 0:01:46]} Rd6 {[%emt 0:00:41]} 26. Rxd6 {[%emt 0:00:48]} cxd6 {[%emt 0:00:12]} 27. Qc4+ {[%emt 0:00:25]} Kh8 {[%emt 0:00:28]} 28. Qxc6 {[%emt 0:00:25]} Qb2 {[%emt 0:00:51]} 29. Qxd6 {[%emt 0:00:16]} Rg8 {[%emt 0:00:06]} 30. Qd4 {[%emt 0:01:28]} Qe2 {[%emt 0:00:26]} 31. Kg2 {[%emt 0:01:10]} Re8 {[%emt 0:00:47]} 32. Qd3 {[%emt 0:01:53]} Qe6 {[%emt 0:00:39]} 33. Qd6 {[%emt 0:00:22]} Qb3 {[%emt 0:00:32]} 34. Qd7 {[%emt 0:01:23]} Rf8 {[%emt 0:00:29]} 35. Qd6 {[%emt 0:00:32]} Rg8 {[%emt 0:00:28]} 36. Qd4 {[%emt 0:01:12]} h6 {[%emt 0:00:24]} 37. Re1 {[%emt 0:01:55]} Qa3 {[%emt 0:00:34]} 38. Qxb6 {[%emt 0:00:36]} Qxc3 {[%emt 0:00:04]} 39. Qe6 {[%emt 0:00:55]} Rf8 {[%emt 0:00:22]} 40. Qe5 {[%emt 0:03:37]} Qd2 {[%emt 0:00:22]} 41. Qe3 {[%emt 0:32:05]} Qc2 {[%emt 0:02:37]} 42. Qe2 {[%emt 0:00:00]} Qa4 {[%emt 0:00:36]} 43. Qe5 {[%emt 0:00:00]} Qh4 {[%emt 0:04:49]} 44. Qg3 {[%emt 0:00:00]} Qf6 {[%emt 0:02:20]} 45. Qe5 {[%emt 0:00:00]} Qc6 {[%emt 0:02:51]} 46. Qe6 {[%emt 0:00:00]} Qc3 {[%emt 0:01:05]} 47. Qe5 {[%emt 0:00:00]} Qc2 {[%emt 0:01:30]} 48. Qe2 {[%emt 0:00:00]} Qa4 {[%emt 0:00:15]} 49. Qe5 {[%emt 0:00:00]} Kh7 {[%emt 0:00:16]} 50. Ra1 {[%emt 0:00:00]} Qc6 {[%emt 0:04:41]} 51. Re1 {[%emt 0:00:00]} Rf6 {[%emt 0:00:30]} 52. Qe3 {[%emt 0:00:00]} Qd6 {[%emt 0:11:11]} 53. Qe5 {[%emt 0:00:00]} Qb4 {[%emt 0:03:00]} 54. Kh1 {[%emt 0:00:15]} Qd2 {[%emt 0:01:44]} 55. Qe3 {[%emt 0:00:38]} Qd6 {[%emt 0:00:18]} 56. Qe5 {[%emt 0:00:26]} Qc6 {[%emt 0:00:46]} 57. Qe3 {[%emt 0:00:38]} Rg6 {[%emt 0:00:25]} 58. Qf4 {[%emt 0:01:39]} Qc2 {[%emt 0:00:50]} 59. Qe3 {[%emt 0:00:50]} Rd6 {[%emt 0:00:25]} 60. Kg2 {[%emt 0:00:54]} Rd2 {[%emt 0:00:27]} 61. Kf1 {[%emt 0:03:26]} Rd3 {[%emt 0:00:37]} 62. Qe2 {[%emt 0:01:11]} Qc3 {[%emt 0:00:30]} 63. Kg2 {[%emt 0:00:09]} Rd6 {[%emt 0:00:32]} 64. Kh1 {[%emt 0:01:12]} Rb6 {[%emt 0:00:33]} 65. Qe3 {[%emt 0:00:27]} Qb4 {[%emt 0:00:28]} 66. Qe5 {[%emt 0:01:01]} Rf6 {[%emt 0:00:28]} 67. Qe7 {[%emt 0:02:35]} Qxe7 {[%emt 0:00:35]} 68. Rxe7 {[%emt 0:00:07]} f4 {[%emt 0:00:23]} 69. Re4 {[%emt 0:00:38]} Kg6 {[%emt 0:00:25]} 70. Kg2 {[%emt 0:00:53]} Kf5 {[%emt 0:00:08]} 71. Rb4 {[%emt 0:00:22]} Rg6+ {[%emt 0:00:11]} 72. Kf1 {[%emt 0:00:54]} Kg5 {[%emt 0:00:56]} 73. Rb5+ {[%emt 0:01:04]} Kf6 {[%emt 0:00:44]} 74. Rb4 {[%emt 0:00:12]} Ke5 {[%emt 0:00:32]} 75. Rb5+ {[%emt 0:00:13]} Ke6 {[%emt 0:00:05]} 76. Rb6+ {[%emt 0:00:39]} Kf7 {[%emt 0:00:05]} 77. Rb7+ {[%emt 0:00:20]} Kg8 {[%emt 0:00:33]} 78. Rb4 {[%emt 0:00:25]} Rf6 {[%emt 0:00:05]} 79. Kg2 {[%emt 0:00:38]} Kh7 {[%emt 0:00:35]} 80. Rb7 {[%emt 0:00:23]} h5 {[%emt 0:01:01]} 81. Rb5 {[%emt 0:01:26]} Kh6 {[%emt 0:00:34]} 82. Ra5 {[%emt 0:02:27]} g5 {[%emt 0:01:05]} 83. h3 {[%emt 0:00:35]} Kg6 {[%emt 0:00:25]} 84. Ra8 {[%emt 0:00:40]} Re6 {[%emt 0:00:25]} 85. Rg8+ {[%emt 0:00:37]} Kf5 {[%emt 0:00:06]} 86. Rh8 {[%emt 0:00:24]} h4 {[%emt 0:00:09]} 87. Ra8 {[%emt 0:00:13]} Re5 {[%emt 0:00:12]} 88. Ra6 {[%emt 0:00:25]} Rd5 {[%emt 0:00:11]} 89. Ra4 {[%emt 0:00:51]} Ke5 {[%emt 0:00:08]} 90. Re4+ {[%emt 0:00:23]} Kd6 {[%emt 0:00:51]} 91. Rc4 {[%emt 0:01:04]} Re5 {[%emt 0:00:10]} 1/2-1/2

[Event "DVM U14 2024"]
[Site "Heidelberg"]
[Date "2024.12.28"]
[Round "4"]
[White "Geschke, Jonathan"]
[Black "Bohatyrova, Mariia"]
[Result "0-1"]
[ECO "B70"]
[WhiteElo "1698"]
[BlackElo "1682"]
[Annotator "NA RC"]
[PlyCount "114"]
[EventDate "2024.12.23"]
[EventType "team-tourn"]
[EventRounds "7"]
[EventCountry "GER"]
[SourceTitle "playchess.com"]
[Source "ChessBase"]
[SourceQuality "1"]
[TimeControl "40/5400+30:1800+30"]

1. e4 {[%emt 0:00:02]} c5 {[%emt 0:00:04]} 2. Nf3 {[%emt 0:00:10]} d6 {[%emt 0:00:16]} 3. d4 {[%emt 0:00:08]} cxd4 {[%emt 0:00:07]} 4. Nxd4 {[%emt 0:00:08]} Nf6 {[%emt 0:00:09]} 5. Nc3 {[%emt 0:00:17]} g6 {[%emt 0:00:09]} 6. f3 {[%emt 0:00:20]} h5 {[%emt 0:00:19]} 7. Be3 {[%emt 0:01:44]} Nc6 {[%emt 0:00:20]} 8. Qd2 {[%emt 0:01:05]} Nxd4 {[%emt 0:00:16]} 9. Bxd4 {[%emt 0:01:26]} Bh6 {[%emt 0:00:27]} 10. Be3 {[%emt 0:01:44]} Bxe3 {[%emt 0:00:09]} 11. Qxe3 {[%emt 0:00:10]} Be6 {[%emt 0:00:14]} 12. Bb5+ {[%emt 0:03:07]} Kf8 {[%emt 0:00:26]} 13. Rd1 {[%emt 0:07:30]} Qa5 {[%emt 0:02:56]} 14. O-O {[%emt 0:01:42]} Rc8 {[%emt 0:01:05]} 15. Bd3 {[%emt 0:08:54]} Qc5 {[%emt 0:00:34]} 16. Qxc5 {[%emt 0:00:29]} Rxc5 {[%emt 0:00:07]} 17. Rf2 {[%emt 0:03:25]} Kg7 {[%emt 0:04:14]} 18. Ne2 {[%emt 0:03:11]} Rhc8 {[%emt 0:14:47]} 19. Nd4 {[%emt 0:01:51]} Bd7 {[%emt 0:00:50]} 20. c3 {[%emt 0:01:54]} a6 {[%emt 0:11:47]} 21. Rc1 {[%emt 0:06:15]} b5 {[%emt 0:02:45]} 22. a3 {[%emt 0:03:17]} h4 {[%emt 0:10:59]} 23. Re1 {[%emt 0:05:11]} Nh5 {[%emt 0:03:55]} 24. Bf1 {[%emt 0:01:33]} Nf4 {[%emt 0:00:57]} 25. Rd2 {[%emt 0:01:23]} f6 {[%emt 0:10:54]} 26. Ne2 {[%emt 0:01:14]} Nxe2+ {[%emt 0:01:48]} 27. Rdxe2 {[%emt 0:00:16]} Be6 {[%emt 0:00:44]} 28. Re3 {[%emt 0:02:41]} Kf7 {[%emt 0:13:56]} 29. f4 {[%emt 0:01:37]} R8c7 {[%emt 0:01:01]} 30. e5 {[%emt 0:12:56]} dxe5 {[%emt 0:00:55]} 31. fxe5 {[%emt 0:00:21]} R7c6 {[%emt 0:06:36]} 32. exf6 {[%emt 0:00:32]} exf6 {[%emt 0:00:16]} 33. Re4 {[%emt 0:04:59]} g5 {[%emt 0:01:47]} 34. a4 {[%emt 0:08:40]} bxa4 {[%emt 0:06:33]} 35. Rxa4 {[%emt 0:00:20]} a5 {[%emt 0:00:22]} 36. b4 {[%emt 0:02:09]} axb4 {[%emt 0:00:32]} 37. cxb4 {[%emt 0:00:03]} Rc1 {[%emt 0:01:24]} 38. Rxc1 {[%emt 0:04:46]} Rxc1 {[%emt 0:00:05]} 39. b5 {[%emt 0:01:34]} h3 {[%emt 0:02:18]} 40. g3 {[%emt 0:01:23]} Rb1 {[%emt 0:01:20]} 41. Rd4 {[%emt 0:36:49]} Ke7 {[%emt 0:16:38]} 42. Rd2 {[%emt 0:00:00]} Bc4 {[%emt 0:02:15]} 43. Rf2 {[%emt 0:00:00]} Bxb5 {[%emt 0:00:20]} 44. Rf5 {[%emt 0:00:00]} Ba6 {[%emt 0:01:07]} 45. Rf3 {[%emt 0:00:00]} Kf7 {[%emt 0:06:37]} 46. Rf2 {[%emt 0:00:00]} Kg6 {[%emt 0:00:27]} 47. Rf3 {[%emt 0:00:00]} f5 {[%emt 0:01:09]} 48. Rf2 {[%emt 0:00:00]} Kf6 {[%emt 0:00:23]} 49. Rf3 {[%emt 0:00:00]} Ke5 {[%emt 0:00:25]} 50. g4 {[%emt 0:01:31]} f4 {[%emt 0:00:09]} 51. Rxh3 {[%emt 0:01:31]} Bxf1 {[%emt 0:00:37]} 52. Rh8 {[%emt 0:00:12]} Be2+ {[%emt 0:00:38]} 53. Kf2 {[%emt 0:00:25]} Bxg4 {[%emt 0:00:09]} 54. Rg8 {[%emt 0:00:29]} Rb2+ {[%emt 0:00:40]} 55. Kg1 {[%emt 0:00:12]} Kf6 {[%emt 0:00:33]} 56. h4 {[%emt 0:00:39]} f3 {[%emt 0:00:54]} 57. Rxg5 {[%emt 0:00:37]} f2+ {[%emt 0:00:12]} 0-1

[Event "DVM U14 2024"]
[Site "Heidelberg"]
[Date "2024.12.28"]
[Round "4"]
[White "Mueller, Maximilian"]
[Black "Zabashtanskyi, Andrii"]
[Result "1/2-1/2"]
[ECO "D02"]
[WhiteElo "1679"]
[BlackElo "1644"]
[Annotator "NA RC"]
[PlyCount "46"]
[EventDate "2024.12.23"]
[EventType "team-tourn"]
[EventRounds "7"]
[EventCountry "GER"]
[SourceTitle "playchess.com"]
[Source "ChessBase"]
[SourceQuality "1"]
[TimeControl "40/5400+30:1800+30"]

1. d4 {[%emt 0:00:02]} Nf6 {[%emt 0:00:08]} 2. Bf4 {[%emt 0:00:09]} d5 {[%emt 0:00:13]} 3. Nc3 {[%emt 0:00:46]} Bf5 {[%emt 0:00:17]} 4. e3 {[%emt 0:00:20]} e6 {[%emt 0:00:47]} 5. Nf3 {[%emt 0:01:19]} Bd6 {[%emt 0:00:13]} 6. Ne5 {[%emt 0:02:26]} O-O {[%emt 0:01:04]} 7. Bd3 {[%emt 0:00:16]} Bxd3 {[%emt 0:00:28]} 8. Nxd3 {[%emt 0:00:18]} Bxf4 {[%emt 0:00:14]} 9. Nxf4 {[%emt 0:00:08]} Nbd7 {[%emt 0:00:16]} 10. O-O {[%emt 0:00:21]} c5 {[%emt 0:00:27]} 11. Nce2 {[%emt 0:01:52]} Qe7 {[%emt 0:00:55]} 12. c3 {[%emt 0:00:51]} cxd4 {[%emt 0:00:54]} 13. exd4 {[%emt 0:00:14]} Nb6 {[%emt 0:01:46]} 14. Ng3 {[%emt 0:03:12]} Qd6 {[%emt 0:00:35]} 15. Nd3 {[%emt 0:01:14]} Nc4 {[%emt 0:02:05]} 16. Qe2 {[%emt 0:01:54]} Rac8 {[%emt 0:01:01]} 17. Ne5 {[%emt 0:02:10]} Qb6 {[%emt 0:00:58]} 18. Nxc4 {[%emt 0:08:16]} Rxc4 {[%emt 0:00:14]} 19. f3 {[%emt 0:04:31]} Re8 {[%emt 0:03:03]} 20. Kh1 {[%emt 0:01:07]} Qd6 {[%emt 0:00:57]} 21. Rae1 {[%emt 0:09:44]} Qf4 {[%emt 0:03:22]} 22. Qe5 {[%emt 0:09:46]} Qxe5 {[%emt 0:00:48]} 23. Rxe5 {[%emt 0:00:08]} b5 {[%emt 0:01:31]} 1/2-1/2

[Event "DVM U14 2024"]
[Site "Heidelberg"]
[Date "2024.12.28"]
[Round "4"]
[White "Maier, Kalle"]
[Black "Petzold, Gustav"]
[Result "1-0"]
[ECO "B32"]
[WhiteElo "1673"]
[BlackElo "935"]
[Annotator "NA RC"]
[PlyCount "63"]
[EventDate "2024.12.23"]
[EventType "team-tourn"]
[EventRounds "7"]
[EventCountry "GER"]
[SourceTitle "playchess.com"]
[Source "ChessBase"]
[SourceQuality "1"]
[TimeControl "40/5400+30:1800+30"]

1. e4 {[%emt 0:00:03]} c5 {[%emt 0:00:03]} 2. Nf3 {[%emt 0:00:03]} Nc6 {[%emt 0:00:10]} 3. d4 {[%emt 0:00:10]} cxd4 {[%emt 0:00:03]} 4. Nxd4 {[%emt 0:00:05]} Nf6 {[%emt 0:00:09]} 5. Nc3 {[%emt 0:00:12]} e5 {[%emt 0:00:08]} 6. Ndb5 {[%emt 0:00:52]} d6 {[%emt 0:00:10]} 7. Bd3 {[%emt 0:01:29]} a6 {[%emt 0:00:08]} 8. Na3 {[%emt 0:00:16]} b5 {[%emt 0:00:08]} 9. Ne2 {[%emt 0:01:07]} Be7 {[%emt 0:00:26]} 10. O-O {[%emt 0:01:39]} O-O {[%emt 0:00:16]} 11. c4 {[%emt 0:02:41]} b4 {[%emt 0:00:22]} 12. Nc2 {[%emt 0:01:17]} a5 {[%emt 0:00:40]} 13. Ne3 {[%emt 0:05:55]} Be6 {[%emt 0:01:40]} 14. b3 {[%emt 0:01:39]} Qd7 {[%emt 0:05:02]} 15. Ng3 {[%emt 0:05:57]} Nd4 {[%emt 0:01:56]} 16. Bb2 {[%emt 0:01:15]} g6 {[%emt 0:01:45]} 17. Bxd4 {[%emt 0:01:21]} exd4 {[%emt 0:00:13]} 18. Nc2 {[%emt 0:03:51]} a4 {[%emt 0:00:32]} 19. Nxd4 {[%emt 0:01:37]} Ra5 {[%emt 0:07:07]} 20. Nxe6 {[%emt 0:03:07]} fxe6 {[%emt 0:02:02]} 21. Qe2 {[%emt 0:07:33]} Rfa8 {[%emt 0:01:12]} 22. bxa4 {[%emt 0:02:07]} Rxa4 {[%emt 0:00:32]} 23. c5 {[%emt 0:01:32]} R4a5 {[%emt 0:02:15]} 24. cxd6 {[%emt 0:00:33]} Qxd6 {[%emt 0:00:59]} 25. Bc4 {[%emt 0:02:49]} Kh8 {[%emt 0:06:35]} 26. Rad1 {[%emt 0:05:57]} Qc6 {[%emt 0:02:54]} 27. Bb3 {[%emt 0:06:18]} Re5 {[%emt 0:02:47]} 28. Rd4 {[%emt 0:01:47]} Raa5 {[%emt 0:08:34]} 29. Rc4 {[%emt 0:02:38]} Rac5 {[%emt 0:01:55]} 30. Rxb4 {[%emt 0:00:38]} Rb5 {[%emt 0:09:28]} 31. Rxb5 {[%emt 0:00:46]} Rxb5 {[%emt 0:00:08]} 32. Ba4 {[%emt 0:01:02]} 1-0

[Event "DVM U14 2024"]
[Site "Heidelberg"]
[Date "2024.12.28"]
[Round "4"]
[White "Varazi, Maxime"]
[Black "Li, Xiao Teng"]
[Result "1-0"]
[ECO "C56"]
[WhiteElo "1673"]
[BlackElo "1661"]
[Annotator "NA RC"]
[PlyCount "35"]
[EventDate "2024.12.23"]
[EventType "team-tourn"]
[EventRounds "7"]
[EventCountry "GER"]
[SourceTitle "playchess.com"]
[Source "ChessBase"]
[SourceQuality "1"]
[TimeControl "40/5400+30:1800+30"]

1. e4 {[%emt 0:00:04]} e5 {[%emt 0:00:17]} 2. Nf3 {[%emt 0:00:24]} Nc6 {[%emt 0:00:05]} 3. d4 {[%emt 0:00:07]} exd4 {[%emt 0:00:05]} 4. Bc4 {[%emt 0:00:05]} Nf6 {[%emt 0:00:08]} 5. e5 {[%emt 0:00:06]} d5 {[%emt 0:00:11]} 6. Bb5 {[%emt 0:00:10]} Nd7 {[%emt 0:00:20]} 7. O-O {[%emt 0:01:00]} Bc5 {[%emt 0:00:14]} 8. Bxc6 {[%emt 0:00:17]} bxc6 {[%emt 0:00:07]} 9. Nxd4 {[%emt 0:00:16]} Bb7 {[%emt 0:00:17]} 10. e6 {[%emt 0:00:20]} fxe6 {[%emt 0:01:39]} 11. Nxe6 {[%emt 0:00:22]} Qc8 {[%emt 0:00:45]} 12. Nxg7+ {[%emt 0:00:46]} Kf7 {[%emt 0:04:59]} 13. Qh5+ {[%emt 0:01:11]} Kxg7 {[%emt 0:22:39]} 14. Bh6+ {[%emt 0:00:10]} Kg8 {[%emt 0:00:19]} 15. Qg5+ {[%emt 0:00:09]} Kf7 {[%emt 0:00:07]} 16. Qg7+ {[%emt 0:00:10]} Ke6 {[%emt 0:01:56]} 17. Re1+ {[%emt 0:00:05]} Kd6 {[%emt 0:01:22]} 18. Qe7# {[%emt 0:00:28]} 1-0

[Event "DVM U14 2024"]
[Site "Heidelberg"]
[Date "2024.12.28"]
[Round "4"]
[White "Berbig, Georg"]
[Black "Fridlin, Daniel"]
[Result "0-1"]
[ECO "B52"]
[WhiteElo "1666"]
[BlackElo "1789"]
[Annotator "NA RC"]
[PlyCount "112"]
[EventDate "2024.12.23"]
[EventType "team-tourn"]
[EventRounds "7"]
[EventCountry "GER"]
[SourceTitle "playchess.com"]
[Source "ChessBase"]
[SourceQuality "1"]
[TimeControl "40/5400+30:1800+30"]

1. e4 {[%emt 0:00:01]} c5 {[%emt 0:00:07]} 2. Nf3 {[%emt 0:00:04]} d6 {[%emt 0:00:10]} 3. Bb5+ {[%emt 0:00:08]} Bd7 {[%emt 0:00:22]} 4. Bxd7+ {[%emt 0:00:09]} Nxd7 {[%emt 0:00:22]} 5. O-O {[%emt 0:00:09]} Ngf6 {[%emt 0:00:22]} 6. Re1 {[%emt 0:00:13]} e6 {[%emt 0:01:09]} 7. c3 {[%emt 0:06:36]} Be7 {[%emt 0:03:17]} 8. d4 {[%emt 0:00:59]} cxd4 {[%emt 0:02:48]} 9. cxd4 {[%emt 0:01:20]} O-O {[%emt 0:00:24]} 10. Nc3 {[%emt 0:04:13]} a6 {[%emt 0:01:44]} 11. Bf4 {[%emt 0:06:42]} Nb6 {[%emt 0:09:05]} 12. Qd3 {[%emt 0:11:07]} Rc8 {[%emt 0:05:59]} 13. Rac1 {[%emt 0:07:15]} Qd7 {[%emt 0:02:20]} 14. Ne2 {[%emt 0:13:35]} Rfd8 {[%emt 0:02:52]} 15. Ng3 {[%emt 0:04:03]} Rc6 {[%emt 0:05:47]} 16. Rxc6 {[%emt 0:12:47]} bxc6 {[%emt 0:00:22]} 17. Qxa6 {[%emt 0:06:23]} Qc7 {[%emt 0:01:16]} 18. Qe2 {[%emt 0:03:15]} Ra8 {[%emt 0:01:12]} 19. a3 {[%emt 0:01:15]} Qb7 {[%emt 0:01:10]} 20. Qc2 {[%emt 0:04:38]} d5 {[%emt 0:02:40]} 21. e5 {[%emt 0:00:40]} Nfd7 {[%emt 0:00:19]} 22. Nd2 {[%emt 0:00:53]} c5 {[%emt 0:01:27]} 23. dxc5 {[%emt 0:02:52]} Nxc5 {[%emt 0:00:14]} 24. Be3 {[%emt 0:00:33]} Rc8 {[%emt 0:01:11]} 25. Bxc5 {[%emt 0:01:01]} Bxc5 {[%emt 0:00:13]} 26. Nb3 {[%emt 0:02:09]} Bb4 {[%emt 0:01:16]} 27. Qe2 {[%emt 0:04:35]} Bxe1 {[%emt 0:00:11]} 28. Qxe1 {[%emt 0:00:04]} Nc4 {[%emt 0:00:26]} 29. Nd4 {[%emt 0:01:51]} Qxb2 {[%emt 0:00:46]} 30. Nf3 {[%emt 0:00:33]} Nxa3 {[%emt 0:01:07]} 31. Ne2 {[%emt 0:00:09]} Nc4 {[%emt 0:00:48]} 32. g3 {[%emt 0:00:57]} Nxe5 {[%emt 0:00:51]} 33. Nxe5 {[%emt 0:00:10]} Qxe5 {[%emt 0:00:06]} 34. Kg2 {[%emt 0:00:04]} g6 {[%emt 0:00:33]} 35. Qd2 {[%emt 0:00:07]} Qe4+ {[%emt 0:00:16]} 36. f3 {[%emt 0:00:31]} Qa4 {[%emt 0:00:14]} 37. Qe3 {[%emt 0:00:21]} Rc2 {[%emt 0:00:58]} 38. Kh3 {[%emt 0:00:04]} Qa2 {[%emt 0:00:26]} 39. Nf4 {[%emt 0:00:03]} Rxh2+ {[%emt 0:01:03]} 40. Kg4 {[%emt 0:00:01]} Qc2 {[%emt 0:01:27]} 41. Qe5 {[%emt 0:30:33]} Qf5+ {[%emt 0:30:57]} 42. Qxf5 {[%emt 0:00:05]} exf5+ {[%emt 0:00:28]} 43. Kg5 {[%emt 0:00:09]} d4 {[%emt 0:00:20]} 44. Kf6 {[%emt 0:00:19]} Rf2 {[%emt 0:00:30]} 45. Ke5 {[%emt 0:00:20]} d3 {[%emt 0:00:47]} 46. Nxd3 {[%emt 0:00:06]} Rxf3 {[%emt 0:00:02]} 47. Nf4 {[%emt 0:00:10]} Rxg3 {[%emt 0:00:07]} 48. Kd4 {[%emt 0:00:08]} Rg4 {[%emt 0:00:11]} 49. Ke3 {[%emt 0:00:05]} Rxf4 {[%emt 0:00:08]} 50. Kxf4 {[%emt 0:00:04]} h5 {[%emt 0:00:09]} 51. Kg3 {[%emt 0:00:06]} g5 {[%emt 0:00:06]} 52. Kf2 {[%emt 0:00:03]} Kg7 {[%emt 0:00:03]} 53. Kg3 {[%emt 0:00:01]} Kf6 {[%emt 0:00:06]} 54. Kf3 {[%emt 0:00:05]} Ke5 {[%emt 0:00:03]} 55. Kg2 {[%emt 0:00:05]} Ke4 {[%emt 0:00:05]} 56. Kf2 {[%emt 0:00:04]} f4 {[%emt 0:00:04]} 0-1

[Event "DVM U14 2024"]
[Site "Heidelberg"]
[Date "2024.12.28"]
[Round "4"]
[White "Madel, Luca"]
[Black "Derhay, Davyd"]
[Result "0-1"]
[ECO "D02"]
[WhiteElo "1657"]
[BlackElo "1665"]
[Annotator "NA RC"]
[PlyCount "93"]
[EventDate "2024.12.23"]
[EventType "team-tourn"]
[EventRounds "7"]
[EventCountry "GER"]
[SourceTitle "playchess.com"]
[Source "ChessBase"]
[SourceQuality "1"]
[TimeControl "40/5400+30:1800+30"]

1. d4 {[%emt 0:00:05]} d5 {[%emt 0:00:04]} 2. Bf4 {[%emt 0:00:09]} Nf6 {[%emt 0:00:09]} 3. e3 {[%emt 0:00:48]} c5 {[%emt 0:00:16]} 4. c3 {[%emt 0:00:09]} Nc6 {[%emt 0:00:09]} 5. Nf3 {[%emt 0:00:10]} Qb6 {[%emt 0:00:25]} 6. Qc2 {[%emt 0:00:31]} g6 {[%emt 0:00:32]} 7. Bd3 {[%emt 0:01:12]} c4 {[%emt 0:00:28]} 8. Be2 {[%emt 0:00:09]} Bf5 {[%emt 0:07:12]} 9. Qc1 {[%emt 0:00:34]} Bg7 {[%emt 0:07:08]} 10. Nbd2 {[%emt 0:02:12]} Qd8 {[%emt 0:04:49]} 11. a4 {[%emt 0:02:54]} Na5 {[%emt 0:02:10]} 12. O-O {[%emt 0:01:04]} O-O {[%emt 0:03:37]} 13. Qd1 {[%emt 0:07:23]} Qb6 {[%emt 0:00:39]} 14. Qc1 {[%emt 0:01:39]} h6 {[%emt 0:02:34]} 15. h3 {[%emt 0:09:11]} g5 {[%emt 0:03:52]} 16. Bh2 {[%emt 0:01:19]} Ne4 {[%emt 0:01:40]} 17. Bd1 {[%emt 0:05:42]} Bh7 {[%emt 0:06:04]} 18. Nxe4 {[%emt 0:03:29]} dxe4 {[%emt 0:00:38]} 19. Nd2 {[%emt 0:00:25]} Rac8 {[%emt 0:02:01]} 20. Be2 {[%emt 0:04:46]} f5 {[%emt 0:02:31]} 21. Ra2 {[%emt 0:14:41]} f4 {[%emt 0:04:39]} 22. Kh1 {[%emt 0:06:29]} Qe6 {[%emt 0:03:52]} 23. Bg4 {[%emt 0:02:11]} Bf5 {[%emt 0:00:10]} 24. Bxf5 {[%emt 0:01:11]} Qxf5 {[%emt 0:00:39]} 25. Qb1 {[%emt 0:02:01]} Nb3 {[%emt 0:02:21]} 26. Nxb3 {[%emt 0:00:53]} cxb3 {[%emt 0:00:05]} 27. Ra1 {[%emt 0:00:12]} f3 {[%emt 0:07:05]} 28. Rg1 {[%emt 0:07:09]} fxg2+ {[%emt 0:04:03]} 29. Rxg2 {[%emt 0:00:10]} e5 {[%emt 0:01:36]} 30. Qd1 {[%emt 0:03:14]} exd4 {[%emt 0:02:27]} 31. Qxb3+ {[%emt 0:01:40]} Kh8 {[%emt 0:04:02]} 32. cxd4 {[%emt 0:00:47]} b6 {[%emt 0:00:27]} 33. Qd1 {[%emt 0:01:22]} Qxh3 {[%emt 0:00:41]} 34. Kg1 {[%emt 0:00:54]} Rf3 {[%emt 0:01:40]} 35. Rc1 {[%emt 0:01:57]} Rcf8 {[%emt 0:00:54]} 36. Rc2 {[%emt 0:02:46]} Qd7 {[%emt 0:01:57]} 37. Rc7 {[%emt 0:01:24]} Qf5 {[%emt 0:00:13]} 38. Qe1 {[%emt 0:02:28]} h5 {[%emt 0:02:22]} 39. Rc2 {[%emt 0:03:50]} h4 {[%emt 0:00:23]} 40. b4 {[%emt 0:01:56]} Bh6 {[%emt 0:02:47]} 41. Re2 {[%emt 0:32:43]} g4 {[%emt 0:31:06]} 42. Be5+ {[%emt 0:01:31]} Kh7 {[%emt 0:00:14]} 43. Qc3 {[%emt 0:00:00]} g3 {[%emt 0:00:00]} 44. Qd2 {[%emt 0:00:00]} gxf2+ {[%emt 0:00:00]} 45. Rgxf2 {[%emt 0:00:00]} Bxe3 {[%emt 0:00:00]} 46. Qxe3 {[%emt 0:00:00]} Rg8+ {[%emt 0:00:00]} 47. Kh2 {[%emt 0:02:54]} 0-1